[Event "December 5 Late 2023"]
[Site "https://www.chess.com"]
[Date "2023.12.05"]
[Round "7"]
[White "Brodsky, David"]
[Black "aksuliini1"]
[Result "1-0"]
[Board "49"]
[TimeControl "180+1"]
[WhiteFideId "2073250"]
[WhiteElo "2781"]
[BlackElo "2565"]
[WhiteTeam "USA"]
[WhiteClock "0:00:35"]
[BlackClock "0:00:11"]

1. d4 {[%clk 0:03:00]}  Nf6 {[%clk 0:02:59]} 2. c4 {[%clk 0:03:01]}  e6 {[%clk 0:02:59]} 3. Nc3 {[%clk 0:03:01]}  Bb4 {[%clk 0:02:59]} 4. e3 {[%clk 0:03:01]}  O-O {[%clk 0:02:58]} 5. Bd2 {[%clk 0:03:01]}  d5 {[%clk 0:02:58]} 6. Nf3 {[%clk 0:02:57]}  b6 {[%clk 0:02:51]} 7. cxd5 {[%clk 0:02:56]}  exd5 {[%clk 0:02:51]} 8. Bd3 {[%clk 0:02:56]}  Bb7 {[%clk 0:02:51]} 9. O-O {[%clk 0:02:55]}  Re8 {[%clk 0:02:44]} 10. Ne5 {[%clk 0:02:55]}  Nbd7 {[%clk 0:02:39]} 11. f4 {[%clk 0:02:55]}  c5 {[%clk 0:02:30]} 12. Rf3 {[%clk 0:02:44]}  Ne4 {[%clk 0:02:12]} 13. Rh3 {[%clk 0:02:37]}  Bxc3 {[%clk 0:02:00]} 14. Bxc3 {[%clk 0:02:32]}  g6 {[%clk 0:01:47]} 15. Bxe4 {[%clk 0:02:12]}  Nxe5 {[%clk 0:01:23]} 16. fxe5 {[%clk 0:01:59]}  dxe4 {[%clk 0:01:17]} 17. Qe2 {[%clk 0:01:37]}  a5 {[%clk 0:01:02]} 18. Qf2 {[%clk 0:01:33]}  Bc8 {[%clk 0:00:59]} 19. Rf1 {[%clk 0:01:24]}  Ra7 {[%clk 0:00:47]} 20. Rh4 {[%clk 0:01:21]}  Bf5 {[%clk 0:00:29]} 21. Rf4 {[%clk 0:01:21]}  Qg5 {[%clk 0:00:28]} 22. d5 {[%clk 0:01:05]}  b5 {[%clk 0:00:24]} 23. b3 {[%clk 0:01:01]}  c4 {[%clk 0:00:22]} 24. bxc4 {[%clk 0:00:58]}  bxc4 {[%clk 0:00:23]} 25. h4 {[%clk 0:00:50]}  Qh5 {[%clk 0:00:20]} 26. g4 {[%clk 0:00:42]}  Bxg4 {[%clk 0:00:20]} 27. Rxf7 {[%clk 0:00:42]}  Raa8 {[%clk 0:00:11]} 28. Qf6 {[%clk 0:00:35]} 1-0

[Event "December 5 Late 2023"]
[Site "https://www.chess.com"]
[Date "2023.12.05"]
[Round "7"]
[White "Erzhanov, Arman"]
[Black "Troff, Kayden"]
[Result "0-1"]
[Board "50"]
[TimeControl "180+1"]
[WhiteFideId "4138821"]
[BlackFideId "2047896"]
[WhiteElo "2536"]
[BlackElo "2780"]
[WhiteTeam "KAZ"]
[BlackTeam "USA"]
[WhiteClock "0:00:06"]
[BlackClock "0:00:52"]

1. e4 {[%clk 0:02:46]}  c5 {[%clk 0:02:59]} 2. Nf3 {[%clk 0:02:45]}  g6 {[%clk 0:03:00]} 3. d4 {[%clk 0:02:44]}  cxd4 {[%clk 0:03:01]} 4. Qxd4 {[%clk 0:02:43]}  Nf6 {[%clk 0:03:01]} 5. Nc3 {[%clk 0:02:43]}  Nc6 {[%clk 0:03:01]} 6. Qa4 {[%clk 0:02:44]}  d6 {[%clk 0:03:02]} 7. e5 {[%clk 0:02:43]}  dxe5 {[%clk 0:03:03]} 8. Nxe5 {[%clk 0:02:44]}  Bd7 {[%clk 0:03:03]} 9. Nxd7 {[%clk 0:02:42]}  Nxd7 {[%clk 0:03:04]} 10. Be3 {[%clk 0:02:38]}  Bg7 {[%clk 0:03:04]} 11. Rd1 {[%clk 0:02:32]}  O-O {[%clk 0:03:04]} 12. Be2 {[%clk 0:02:25]}  Nb6 {[%clk 0:03:03]} 13. Qh4 {[%clk 0:02:10]}  Qc8 {[%clk 0:03:00]} 14. O-O {[%clk 0:02:05]}  Qf5 {[%clk 0:03:00]} 15. Bd3 {[%clk 0:02:00]}  Qa5 {[%clk 0:02:59]} 16. Bh6 {[%clk 0:01:58]}  Rfd8 {[%clk 0:02:46]} 17. Bxg7 {[%clk 0:01:57]}  Kxg7 {[%clk 0:02:47]} 18. Rfe1 {[%clk 0:01:56]}  Rd4 {[%clk 0:02:44]} 19. Re4 {[%clk 0:01:52]}  Rad8 {[%clk 0:02:43]} 20. Rde1 {[%clk 0:01:52]}  Na4 {[%clk 0:02:36]} 21. Nxa4 {[%clk 0:01:41]}  Qxe1+ {[%clk 0:02:34]} 22. Rxe1 {[%clk 0:01:39]}  Rxh4 {[%clk 0:02:35]} 23. Nc5 {[%clk 0:01:37]}  e6 {[%clk 0:02:23]} 24. a3 {[%clk 0:01:35]}  Rhd4 {[%clk 0:02:16]} 25. Kf1 {[%clk 0:01:30]}  b6 {[%clk 0:02:15]} 26. Nb3 {[%clk 0:01:29]}  R4d6 {[%clk 0:02:14]} 27. Re4 {[%clk 0:01:27]}  f5 {[%clk 0:02:11]} 28. Ra4 {[%clk 0:01:26]}  e5 {[%clk 0:02:06]} 29. f3 {[%clk 0:01:25]}  a5 {[%clk 0:02:05]} 30. Rc4 {[%clk 0:01:23]}  Kf6 {[%clk 0:02:02]} 31. Kf2 {[%clk 0:01:22]}  Rc8 {[%clk 0:01:53]} 32. Ke3 {[%clk 0:01:20]}  Ne7 {[%clk 0:01:52]} 33. Rxc8 {[%clk 0:01:11]}  Nxc8 {[%clk 0:01:52]} 34. Nd2 {[%clk 0:01:11]}  Rc6 {[%clk 0:01:47]} 35. c3 {[%clk 0:01:07]}  Nd6 {[%clk 0:01:46]} 36. c4 {[%clk 0:01:06]}  a4 {[%clk 0:01:43]} 37. Bf1 {[%clk 0:01:00]}  Rc5 {[%clk 0:01:40]} 38. Kd3 {[%clk 0:01:00]}  b5 {[%clk 0:01:41]} 39. cxb5 {[%clk 0:01:00]}  Nxb5 {[%clk 0:01:41]} 40. Be2 {[%clk 0:00:53]}  Rc1 {[%clk 0:01:36]} 41. Nc4 {[%clk 0:00:48]}  Nd4 {[%clk 0:01:35]} 42. Ne3 {[%clk 0:00:41]}  Rb1 {[%clk 0:01:26]} 43. Nc4 {[%clk 0:00:38]}  Re1 {[%clk 0:01:09]} 44. f4 {[%clk 0:00:32]}  exf4 {[%clk 0:00:57]} 45. Kxd4 {[%clk 0:00:22]}  Rxe2 {[%clk 0:00:57]} 46. Nb6 {[%clk 0:00:20]}  Rxb2 {[%clk 0:00:55]} 47. Nxa4 {[%clk 0:00:19]}  Rxg2 {[%clk 0:00:55]} 48. Nc3 {[%clk 0:00:18]}  f3 {[%clk 0:00:55]} 49. Ke3 {[%clk 0:00:18]}  Rc2 {[%clk 0:00:56]} 50. Nd1 {[%clk 0:00:11]}  Ra2 {[%clk 0:00:55]} 51. Kxf3 {[%clk 0:00:11]}  Rxa3+ {[%clk 0:00:55]} 52. Kg2 {[%clk 0:00:12]}  g5 {[%clk 0:00:55]} 53. Nf2 {[%clk 0:00:11]}  h5 {[%clk 0:00:55]} 54. Nd1 {[%clk 0:00:10]}  f4 {[%clk 0:00:54]} 55. Nf2 {[%clk 0:00:10]}  Kf5 {[%clk 0:00:54]} 56. Nd1 {[%clk 0:00:09]}  Rd3 {[%clk 0:00:54]} 57. Nf2 {[%clk 0:00:09]}  Rd2 {[%clk 0:00:53]} 58. Kg1 {[%clk 0:00:09]}  g4 {[%clk 0:00:53]} 59. Kf1 {[%clk 0:00:10]}  h4 {[%clk 0:00:52]} 60. Kg1 {[%clk 0:00:10]}  g3 {[%clk 0:00:51]} 61. hxg3 {[%clk 0:00:06]}  hxg3 {[%clk 0:00:52]} 0-1

[Event "December 5 Late 2023"]
[Site "https://www.chess.com"]
[Date "2023.12.05"]
[Round "7"]
[White "Vazquez, Facundo"]
[Black "Pesotskiy, Mikhail"]
[Result "1-0"]
[Board "51"]
[TimeControl "180+1"]
[WhiteFideId "3007669"]
[BlackFideId "34164453"]
[WhiteElo "2712"]
[BlackElo "2527"]
[WhiteTeam "URU"]
[BlackTeam "RUS"]
[WhiteClock "0:01:49"]
[BlackClock "0:01:24"]

1. d4 {[%clk 0:02:57]}  Nf6 {[%clk 0:02:59]} 2. c4 {[%clk 0:02:56]}  e6 {[%clk 0:03:00]} 3. g3 {[%clk 0:02:54]}  Bb4+ {[%clk 0:03:00]} 4. Bd2 {[%clk 0:02:54]}  a5 {[%clk 0:03:01]} 5. Nf3 {[%clk 0:02:53]}  b6 {[%clk 0:03:01]} 6. Bg2 {[%clk 0:02:54]}  Bb7 {[%clk 0:03:01]} 7. O-O {[%clk 0:02:53]}  O-O {[%clk 0:03:02]} 8. Bf4 {[%clk 0:02:51]}  Be7 {[%clk 0:03:02]} 9. Nc3 {[%clk 0:02:50]}  Ne4 {[%clk 0:03:03]} 10. Qc2 {[%clk 0:02:48]}  Nxc3 {[%clk 0:03:03]} 11. Qxc3 {[%clk 0:02:49]}  Be4 {[%clk 0:03:04]} 12. Rad1 {[%clk 0:02:48]}  d6 {[%clk 0:03:03]} 13. Qe3 {[%clk 0:02:48]}  Bb7 {[%clk 0:02:56]} 14. h4 {[%clk 0:02:47]}  Nd7 {[%clk 0:02:54]} 15. Qd3 {[%clk 0:02:46]}  Nf6 {[%clk 0:02:54]} 16. Nd2 {[%clk 0:02:43]}  Bxg2 {[%clk 0:02:54]} 17. Kxg2 {[%clk 0:02:44]}  c5 {[%clk 0:02:35]} 18. dxc5 {[%clk 0:02:42]}  bxc5 {[%clk 0:02:25]} 19. Nf3 {[%clk 0:02:39]}  Qb6 {[%clk 0:02:23]} 20. Qc2 {[%clk 0:02:37]}  Rab8 {[%clk 0:02:22]} 21. b3 {[%clk 0:02:35]}  Rfd8 {[%clk 0:02:19]} 22. Rb1 {[%clk 0:02:32]}  Qc6 {[%clk 0:01:59]} 23. Rfd1 {[%clk 0:02:28]}  Rb4 {[%clk 0:01:55]} 24. Bd2 {[%clk 0:02:27]}  Rb7 {[%clk 0:01:52]} 25. Bxa5 {[%clk 0:02:27]}  Ra8 {[%clk 0:01:53]} 26. Bc3 {[%clk 0:02:27]}  Rba7 {[%clk 0:01:54]} 27. a4 {[%clk 0:02:24]}  Ne4 {[%clk 0:01:54]} 28. Bb2 {[%clk 0:02:18]}  Rb7 {[%clk 0:01:54]} 29. Rd3 {[%clk 0:02:14]}  Rab8 {[%clk 0:01:52]} 30. Rbd1 {[%clk 0:02:12]}  Rb4 {[%clk 0:01:43]} 31. Ba3 {[%clk 0:02:08]}  R4b6 {[%clk 0:01:43]} 32. Bc1 {[%clk 0:02:08]}  Qb7 {[%clk 0:01:41]} 33. a5 {[%clk 0:01:49]}  Rxb3 {[%clk 0:01:24]} 34. a6 {[%clk 0:01:49]} 1-0

[Event "December 5 Late 2023"]
[Site "https://www.chess.com"]
[Date "2023.12.05"]
[Round "7"]
[White "Djokic, Mihailo"]
[Black "Keleberda, Tymur"]
[Result "1/2-1/2"]
[Board "52"]
[TimeControl "180+1"]
[WhiteFideId "976440"]
[BlackFideId "14174294"]
[WhiteElo "2711"]
[BlackElo "2507"]
[WhiteTeam "SRB"]
[BlackTeam "CAN"]
[WhiteClock "0:00:44"]
[BlackClock "0:00:24"]

1. e4 {[%clk 0:03:00]}  c5 {[%clk 0:02:59]} 2. Nf3 {[%clk 0:03:01]}  d6 {[%clk 0:02:59]} 3. d4 {[%clk 0:03:01]}  cxd4 {[%clk 0:03:00]} 4. Nxd4 {[%clk 0:03:01]}  Nf6 {[%clk 0:03:01]} 5. Nc3 {[%clk 0:03:02]}  a6 {[%clk 0:03:01]} 6. Rg1 {[%clk 0:03:03]}  e5 {[%clk 0:02:53]} 7. Nb3 {[%clk 0:03:03]}  h5 {[%clk 0:02:53]} 8. h3 {[%clk 0:03:03]}  h4 {[%clk 0:02:50]} 9. Be3 {[%clk 0:03:02]}  Be7 {[%clk 0:02:49]} 10. Qf3 {[%clk 0:03:02]}  Be6 {[%clk 0:02:48]} 11. O-O-O {[%clk 0:03:02]}  Nbd7 {[%clk 0:02:48]} 12. Nd5 {[%clk 0:03:01]}  Bxd5 {[%clk 0:02:44]} 13. exd5 {[%clk 0:03:01]}  b5 {[%clk 0:02:38]} 14. g4 {[%clk 0:03:01]}  hxg3 {[%clk 0:02:33]} 15. fxg3 {[%clk 0:03:02]}  Rc8 {[%clk 0:02:25]} 16. g4 {[%clk 0:03:02]}  g6 {[%clk 0:02:20]} 17. g5 {[%clk 0:02:41]}  Nh5 {[%clk 0:02:17]} 18. Bd3 {[%clk 0:02:38]}  Nf4 {[%clk 0:02:06]} 19. Bxf4 {[%clk 0:02:33]}  exf4 {[%clk 0:02:06]} 20. Qxf4 {[%clk 0:02:30]}  Ne5 {[%clk 0:02:06]} 21. Kb1 {[%clk 0:02:26]}  Rxh3 {[%clk 0:01:55]} 22. Be4 {[%clk 0:02:02]}  Rc4 {[%clk 0:01:38]} 23. Rh1 {[%clk 0:01:57]}  Bxg5 {[%clk 0:01:30]} 24. Qf2 {[%clk 0:01:43]}  Rxh1 {[%clk 0:01:17]} 25. Rxh1 {[%clk 0:01:42]}  Ke7 {[%clk 0:01:17]} 26. Bd3 {[%clk 0:01:40]}  Nxd3 {[%clk 0:01:04]} 27. cxd3 {[%clk 0:01:40]}  Rf4 {[%clk 0:01:04]} 28. Qa7+ {[%clk 0:01:35]}  Kf6 {[%clk 0:00:53]} 29. Qxa6 {[%clk 0:01:35]}  Kg7 {[%clk 0:00:51]} 30. Qxb5 {[%clk 0:01:32]}  Rf2 {[%clk 0:00:49]} 31. d4 {[%clk 0:01:22]}  Qc8 {[%clk 0:00:43]} 32. Qd3 {[%clk 0:01:19]}  Qg4 {[%clk 0:00:43]} 33. Rf1 {[%clk 0:01:06]}  Rxf1+ {[%clk 0:00:36]} 34. Qxf1 {[%clk 0:01:06]}  Qe4+ {[%clk 0:00:37]} 35. Ka1 {[%clk 0:01:06]}  Qxd5 {[%clk 0:00:37]} 36. Qd1 {[%clk 0:01:02]}  Be3 {[%clk 0:00:36]} 37. a4 {[%clk 0:01:02]}  f5 {[%clk 0:00:35]} 38. Ka2 {[%clk 0:01:02]}  f4 {[%clk 0:00:36]} 39. Qe2 {[%clk 0:00:57]}  Qe4 {[%clk 0:00:34]} 40. Qg4 {[%clk 0:00:53]}  f3 {[%clk 0:00:24]} 41. Qxe4 {[%clk 0:00:44]} 1/2-1/2

[Event "December 5 Late 2023"]
[Site "https://www.chess.com"]
[Date "2023.12.05"]
[Round "7"]
[White "Della Morte, German"]
[Black "Panesar Vedant"]
[Result "1/2-1/2"]
[Board "54"]
[TimeControl "180+1"]
[WhiteFideId "113522"]
[BlackFideId "35033018"]
[WhiteElo "2475"]
[BlackElo "2701"]
[WhiteTeam "ARG"]
[BlackTeam "IND"]
[WhiteClock "0:00:47"]
[BlackClock "0:00:04"]

1. e4 {[%clk 0:02:57]}  e5 {[%clk 0:02:57]} 2. Nf3 {[%clk 0:02:57]}  Nc6 {[%clk 0:02:58]} 3. Bb5 {[%clk 0:02:58]}  a6 {[%clk 0:02:58]} 4. Ba4 {[%clk 0:02:58]}  Nf6 {[%clk 0:02:59]} 5. Nc3 {[%clk 0:02:58]}  b5 {[%clk 0:02:58]} 6. Bb3 {[%clk 0:02:58]}  Bc5 {[%clk 0:02:59]} 7. d3 {[%clk 0:02:59]}  d6 {[%clk 0:02:59]} 8. h3 {[%clk 0:02:58]}  h6 {[%clk 0:02:59]} 9. O-O {[%clk 0:02:59]}  O-O {[%clk 0:02:59]} 10. Be3 {[%clk 0:02:59]}  Bxe3 {[%clk 0:02:56]} 11. fxe3 {[%clk 0:02:59]}  Na5 {[%clk 0:02:57]} 12. Nd5 {[%clk 0:02:59]}  Nxb3 {[%clk 0:02:57]} 13. Nxf6+ {[%clk 0:02:59]}  Qxf6 {[%clk 0:02:57]} 14. axb3 {[%clk 0:02:50]}  Qe7 {[%clk 0:02:57]} 15. Qe1 {[%clk 0:02:47]}  f5 {[%clk 0:02:48]} 16. exf5 {[%clk 0:02:47]}  Bxf5 {[%clk 0:02:47]} 17. e4 {[%clk 0:02:47]}  Bd7 {[%clk 0:02:43]} 18. Qg3 {[%clk 0:02:47]}  Rf6 {[%clk 0:02:41]} 19. Nh4 {[%clk 0:02:44]}  Rxf1+ {[%clk 0:02:25]} 20. Kxf1 {[%clk 0:02:43]}  Qg5 {[%clk 0:02:01]} 21. Qxg5 {[%clk 0:02:41]}  hxg5 {[%clk 0:02:02]} 22. Nf3 {[%clk 0:02:42]}  g4 {[%clk 0:02:02]} 23. hxg4 {[%clk 0:02:42]}  Bxg4 {[%clk 0:02:03]} 24. Kf2 {[%clk 0:02:43]}  Kf7 {[%clk 0:01:55]} 25. Ke3 {[%clk 0:02:43]}  Ke7 {[%clk 0:01:53]} 26. c4 {[%clk 0:02:42]}  Rb8 {[%clk 0:01:48]} 27. Nd2 {[%clk 0:02:33]}  Bc8 {[%clk 0:01:43]} 28. Rh1 {[%clk 0:02:29]}  Bb7 {[%clk 0:01:34]} 29. Rh7 {[%clk 0:02:27]}  Kf7 {[%clk 0:01:32]} 30. Rh3 {[%clk 0:02:26]}  Bc6 {[%clk 0:01:31]} 31. Rf3+ {[%clk 0:02:25]}  Kg8 {[%clk 0:01:30]} 32. Rf1 {[%clk 0:02:25]}  a5 {[%clk 0:01:29]} 33. Ra1 {[%clk 0:02:24]}  Ra8 {[%clk 0:00:56]} 34. Nb1 {[%clk 0:02:19]}  b4 {[%clk 0:00:51]} 35. Nd2 {[%clk 0:02:19]}  Kf7 {[%clk 0:00:49]} 36. Rf1+ {[%clk 0:02:17]}  Ke6 {[%clk 0:00:49]} 37. Rh1 {[%clk 0:02:16]}  a4 {[%clk 0:00:47]} 38. bxa4 {[%clk 0:02:16]}  Rxa4 {[%clk 0:00:46]} 39. Rh7 {[%clk 0:02:14]}  Kf7 {[%clk 0:00:45]} 40. b3 {[%clk 0:02:12]}  Ra1 {[%clk 0:00:43]} 41. Rh3 {[%clk 0:02:10]}  Bd7 {[%clk 0:00:42]} 42. Rf3+ {[%clk 0:02:10]}  Kg8 {[%clk 0:00:43]} 43. Rf1 {[%clk 0:02:09]}  Ra8 {[%clk 0:00:42]} 44. d4 {[%clk 0:02:08]}  exd4+ {[%clk 0:00:38]} 45. Kxd4 {[%clk 0:02:08]}  Ra2 {[%clk 0:00:39]} 46. Rf2 {[%clk 0:02:04]}  Bg4 {[%clk 0:00:36]} 47. c5 {[%clk 0:02:03]}  Be6 {[%clk 0:00:34]} 48. cxd6 {[%clk 0:01:57]}  cxd6 {[%clk 0:00:35]} 49. Ke3 {[%clk 0:01:50]}  Rb2 {[%clk 0:00:35]} 50. Nc4 {[%clk 0:01:16]}  Rxb3+ {[%clk 0:00:33]} 51. Kd4 {[%clk 0:01:16]}  Bxc4 {[%clk 0:00:16]} 52. Kxc4 {[%clk 0:01:16]}  Re3 {[%clk 0:00:16]} 53. Kd4 {[%clk 0:01:17]}  Rg3 {[%clk 0:00:13]} 54. Rb2 {[%clk 0:01:15]}  b3 {[%clk 0:00:14]} 55. Kd5 {[%clk 0:01:14]}  Kf7 {[%clk 0:00:10]} 56. Kxd6 {[%clk 0:01:14]}  Rd3+ {[%clk 0:00:10]} 57. Ke5 {[%clk 0:01:12]}  Ke7 {[%clk 0:00:09]} 58. g4 {[%clk 0:01:12]}  Kd7 {[%clk 0:00:06]} 59. Rf2 {[%clk 0:01:10]}  Ke7 {[%clk 0:00:04]} 60. g5 {[%clk 0:01:09]}  Rc3 {[%clk 0:00:04]} 61. Kf5 {[%clk 0:01:07]}  Rc2 {[%clk 0:00:03]} 62. Rf3 {[%clk 0:01:06]}  Rc5+ {[%clk 0:00:02]} 63. Kg6 {[%clk 0:01:03]}  Rb5 {[%clk 0:00:03]} 64. Rf7+ {[%clk 0:01:01]}  Ke6 {[%clk 0:00:02]} 65. Rf1 {[%clk 0:00:57]}  b2 {[%clk 0:00:03]} 66. Rb1 {[%clk 0:00:58]}  Ke7 {[%clk 0:00:03]} 67. e5 {[%clk 0:00:56]}  Ke6 {[%clk 0:00:04]} 68. Kxg7 {[%clk 0:00:56]}  Kf5 {[%clk 0:00:03]} 69. g6 {[%clk 0:00:54]}  Rb7+ {[%clk 0:00:03]} 70. Kh6 {[%clk 0:00:53]}  Kxe5 {[%clk 0:00:03]} 71. g7 {[%clk 0:00:53]}  Rb8 {[%clk 0:00:01]} 72. Kh7 {[%clk 0:00:48]}  Kd4 {[%clk 0:00:01]} 73. Rxb2 {[%clk 0:00:47]}  Rxb2 {[%clk 0:00:02]} 74. g8=Q {[%clk 0:00:48]}  Rh2+ {[%clk 0:00:02]} 75. Kg7 {[%clk 0:00:46]}  Rg2+ {[%clk 0:00:03]} 76. Kf7 {[%clk 0:00:47]}  Rxg8 {[%clk 0:00:04]} 77. Kxg8 {[%clk 0:00:47]} 1/2-1/2

[Event "December 5 Late 2023"]
[Site "https://www.chess.com"]
[Date "2023.12.05"]
[Round "7"]
[White "Amburgy, Ryan"]
[Black "Buchenau, Frank"]
[Result "1-0"]
[Board "56"]
[TimeControl "180+1"]
[WhiteFideId "30924820"]
[BlackFideId "4604350"]
[WhiteElo "2672"]
[BlackElo "2427"]
[WhiteTeam "USA"]
[BlackTeam "GER"]
[WhiteClock "0:02:06"]
[BlackClock "0:01:46"]

1. d4 {[%clk 0:03:00]}  e6 {[%clk 0:02:58]} 2. Nc3 {[%clk 0:02:58]}  d5 {[%clk 0:02:57]} 3. Bf4 {[%clk 0:02:58]}  a6 {[%clk 0:02:54]} 4. e4 {[%clk 0:02:53]}  Bb4 {[%clk 0:02:46]} 5. exd5 {[%clk 0:02:52]}  exd5 {[%clk 0:02:45]} 6. Bd3 {[%clk 0:02:49]}  Ne7 {[%clk 0:02:42]} 7. Ne2 {[%clk 0:02:47]}  Bf5 {[%clk 0:02:40]} 8. a3 {[%clk 0:02:46]}  Ba5 {[%clk 0:02:28]} 9. O-O {[%clk 0:02:43]}  O-O {[%clk 0:02:27]} 10. Na4 {[%clk 0:02:36]}  Nd7 {[%clk 0:02:23]} 11. Ng3 {[%clk 0:02:24]}  Bg6 {[%clk 0:02:20]} 12. Qf3 {[%clk 0:02:12]}  b5 {[%clk 0:02:11]} 13. Nc5 {[%clk 0:02:08]}  Nxc5 {[%clk 0:02:11]} 14. dxc5 {[%clk 0:02:09]}  Re8 {[%clk 0:01:46]} 15. b4 {[%clk 0:02:06]} 1-0

[Event "December 5 Late 2023"]
[Site "https://www.chess.com"]
[Date "2023.12.05"]
[Round "7"]
[White "Zakarian, David"]
[Black "Vlassov, Nikolai"]
[Result "1-0"]
[Board "57"]
[TimeControl "180+1"]
[WhiteFideId "13301276"]
[BlackFideId "4103360"]
[WhiteElo "2405"]
[BlackElo "2653"]
[WhiteTeam "ARM"]
[BlackTeam "FID"]
[WhiteClock "0:00:05"]
[BlackClock "0:00:03"]

1. f4 {[%clk 0:03:00]}  g6 {[%clk 0:02:57]} 2. Nf3 {[%clk 0:03:00]}  Bg7 {[%clk 0:02:58]} 3. e4 {[%clk 0:02:59]}  d5 {[%clk 0:02:55]} 4. e5 {[%clk 0:02:58]}  c5 {[%clk 0:02:55]} 5. c3 {[%clk 0:02:52]}  Nc6 {[%clk 0:02:54]} 6. Bb5 {[%clk 0:02:50]}  Bg4 {[%clk 0:02:52]} 7. h3 {[%clk 0:02:48]}  Bxf3 {[%clk 0:02:51]} 8. Qxf3 {[%clk 0:02:48]}  e6 {[%clk 0:02:50]} 9. d3 {[%clk 0:02:37]}  Ne7 {[%clk 0:02:46]} 10. Ba4 {[%clk 0:02:31]}  Qb6 {[%clk 0:02:37]} 11. Qf2 {[%clk 0:02:26]}  h5 {[%clk 0:02:34]} 12. O-O {[%clk 0:02:21]}  Nf5 {[%clk 0:02:31]} 13. a3 {[%clk 0:02:06]}  Kf8 {[%clk 0:02:23]} 14. b4 {[%clk 0:02:03]}  cxb4 {[%clk 0:02:20]} 15. axb4 {[%clk 0:02:00]}  Nce7 {[%clk 0:02:16]} 16. Bd1 {[%clk 0:01:46]}  Qxf2+ {[%clk 0:02:13]} 17. Rxf2 {[%clk 0:01:46]}  g5 {[%clk 0:01:46]} 18. Rfa2 {[%clk 0:01:38]}  Nc8 {[%clk 0:01:41]} 19. d4 {[%clk 0:01:15]}  gxf4 {[%clk 0:01:39]} 20. Bxf4 {[%clk 0:01:15]}  Bh6 {[%clk 0:01:39]} 21. Bxh6+ {[%clk 0:01:13]}  Rxh6 {[%clk 0:01:39]} 22. Nd2 {[%clk 0:01:06]}  Rb8 {[%clk 0:01:30]} 23. b5 {[%clk 0:01:02]}  b6 {[%clk 0:01:24]} 24. Bc2 {[%clk 0:00:52]}  Nfe7 {[%clk 0:01:09]} 25. c4 {[%clk 0:00:42]}  Rb7 {[%clk 0:01:00]} 26. cxd5 {[%clk 0:00:38]}  Nxd5 {[%clk 0:01:00]} 27. Be4 {[%clk 0:00:39]}  f6 {[%clk 0:00:54]} 28. Rc2 {[%clk 0:00:33]}  Nce7 {[%clk 0:00:51]} 29. Nc4 {[%clk 0:00:26]}  Rc7 {[%clk 0:00:45]} 30. Nd6 {[%clk 0:00:23]}  Rxc2 {[%clk 0:00:44]} 31. Bxc2 {[%clk 0:00:24]}  fxe5 {[%clk 0:00:43]} 32. dxe5 {[%clk 0:00:20]}  Ng6 {[%clk 0:00:38]} 33. Bxg6 {[%clk 0:00:17]}  Rxg6 {[%clk 0:00:38]} 34. Rxa7 {[%clk 0:00:18]}  Ne3 {[%clk 0:00:30]} 35. Rf7+ {[%clk 0:00:17]}  Kg8 {[%clk 0:00:30]} 36. Rf2 {[%clk 0:00:17]}  Rg5 {[%clk 0:00:28]} 37. Re2 {[%clk 0:00:15]}  Nd5 {[%clk 0:00:22]} 38. Nc4 {[%clk 0:00:15]}  Nf4 {[%clk 0:00:21]} 39. Rd2 {[%clk 0:00:14]}  Nd5 {[%clk 0:00:16]} 40. Kf2 {[%clk 0:00:11]}  Rg7 {[%clk 0:00:14]} 41. Kf3 {[%clk 0:00:11]}  Rf7+ {[%clk 0:00:13]} 42. Ke4 {[%clk 0:00:11]}  Rf4+ {[%clk 0:00:13]} 43. Kd3 {[%clk 0:00:11]}  Rf1 {[%clk 0:00:12]} 44. Kc2 {[%clk 0:00:10]}  Nb4+ {[%clk 0:00:10]} 45. Kb3 {[%clk 0:00:11]}  Nd5 {[%clk 0:00:10]} 46. Nd6 {[%clk 0:00:10]}  Kg7 {[%clk 0:00:07]} 47. g4 {[%clk 0:00:07]}  h4 {[%clk 0:00:06]} 48. g5 {[%clk 0:00:06]}  Rf3+ {[%clk 0:00:06]} 49. Kc4 {[%clk 0:00:06]}  Rxh3 {[%clk 0:00:07]} 50. Rxd5 {[%clk 0:00:05]}  exd5+ {[%clk 0:00:06]} 51. Kxd5 {[%clk 0:00:06]}  Rb3 {[%clk 0:00:06]} 52. e6 {[%clk 0:00:06]}  Kf8 {[%clk 0:00:05]} 53. g6 {[%clk 0:00:06]}  Rd3+ {[%clk 0:00:04]} 54. Ke5 {[%clk 0:00:06]}  Re3+ {[%clk 0:00:04]} 55. Kd5 {[%clk 0:00:06]}  h3 {[%clk 0:00:04]} 56. g7+ {[%clk 0:00:03]}  Kg8 {[%clk 0:00:04]} 57. Nf5 {[%clk 0:00:03]}  Rxe6 {[%clk 0:00:02]} 58. Kxe6 {[%clk 0:00:03]}  h2 {[%clk 0:00:02]} 59. Kf6 {[%clk 0:00:03]}  h1=Q {[%clk 0:00:03]} 60. Ne7+ {[%clk 0:00:03]}  Kh7 {[%clk 0:00:03]} 61. g8=Q+ {[%clk 0:00:04]}  Kh6 {[%clk 0:00:03]} 62. Qg6# {[%clk 0:00:05]} 1-0